fUSD/lending_fUSD_20240925
["ID","MTS","AMOUNT","RATE_DAILY","PERIOD"]
[339180265,1727275872186,-17990.31761327,0.00013,2]
[339180266,1727275872210,-500.0,0.00012999,2]
[339180267,1727275872220,-30678.8013507,0.00013,2]
[339180268,1727275872232,-60583.3718317,0.00013,2]
[339180269,1727275872511,-18676.06898695,0.00013,2]
[339180270,1727275872530,-500.0,0.00012876,2]
[339180271,1727275872541,-10906.86270416,0.00013,2]
[339180272,1727275872555,-3453.00958133,0.00013,2]
[339180273,1727275872568,-4561.76530792,0.00013,2]
[339180274,1727275872581,-8924.9356803,0.00013,2]
[339180275,1727275872594,-912.85999773,0.00013,2]
[339180276,1727275872607,-3404.32510307,0.00013,2]
[339180277,1727275872635,-2532.77544,0.00013,2]
[339180278,1727275872648,-748.82902201,0.00013,2]
[339180279,1727275872661,-275.5687984,0.00013,2]
[339180280,1727275872675,-1358.33273909,0.00013,2]
[339180281,1727275872909,150.0,0.0001111,2]
[339180282,1727275878317,600.0,0.00010082,2]
[339180283,1727275904931,500.0,0.00010082,2]
[339180284,1727275924389,500.0,0.00022,120]
[339180285,1727275931827,290.0,0.00013918,30]
[339180286,1727275963427,162.3,9.589e-05,2]
[339180288,1727276026438,2104.0,0.00021,60]
[339180290,1727276090566,678.4,0.00010959,2]
[339180291,1727276105503,150.0,9.337e-05,2]
[339180292,1727276133741,600.0,8.986e-05,2]
[339180293,1727276135578,600.0,0.00010356,2]
[339180294,1727276136079,500.0,0.00010082,2]
[339180295,1727276160233,377.34,9.737e-05,2]
[339180296,1727276307752,202.98,0.00010959,2]
[339180297,1727276448830,1020.0,0.00010959,2]
[339180298,1727276477413,275.5,0.00013918,30]
[339180301,1727276553766,1050.0,0.00011,2]
[339180302,1727276599279,162.3,9.589e-05,2]
[339180307,1727276687602,1466.786944,0.00011106,2]
[339180308,1727276724113,358.47,9.311e-05,2]
[339180316,1727276857949,236.47,0.00010959,2]
[339180317,1727276891718,2489.48200078,0.00022,120]
[339180329,1727276950538,150.0,0.0001111,2]
[339180336,1727276972117,500.0,0.00021999,120]
[339180337,1727276972252,500.0,0.00021999,120]
[339180338,1727276972925,500.0,0.00021999,120]
[339180339,1727276973276,500.0,0.00021999,120]
[339180340,1727276973611,500.0,0.00021999,120]
[339180341,1727276973953,508.3,0.00021999,120]
[339180342,1727276978770,3000.0,0.00021999,120]
[339180343,1727276979187,3000.0,0.00021999,120]
[339180344,1727276979273,500.0,0.00021999,120]
[339180345,1727276979499,3000.0,0.00021999,120]
[339180346,1727276979634,500.0,0.00021999,120]
[339180347,1727276979910,3000.0,0.00021999,120]
[339180348,1727276980307,3000.0,0.00021999,120]
[339180349,1727276980355,500.0,0.00021999,120]
[339180350,1727276980619,3000.0,0.00021999,120]
[339180351,1727276980722,500.0,0.00021999,120]
[339180352,1727276980752,330.87,0.00021999,120]
[339180353,1727276980934,3000.0,0.00021999,120]
[339180354,1727276981072,500.0,0.00021999,120]
[339180355,1727276981250,3000.0,0.00021999,120]
[339180356,1727276981609,3000.0,0.00021999,120]
[339180357,1727276981918,2320.35087505,0.00021999,120]
[339180358,1727276983978,500.0,0.00021999,120]
[339180359,1727276984796,500.0,0.00021999,120]
[339180360,1727276985146,500.0,0.00021999,120]
[339180361,1727276985480,500.0,0.00021999,120]
[339180362,1727276985777,500.0,0.00021999,120]
[339180363,1727276986214,500.0,0.00021999,120]
[339180364,1727276986519,500.0,0.00021999,120]
[339180365,1727276986902,332.32780972,0.00021999,120]
[339180366,1727276990426,500.0,0.00021999,120]
[339180367,1727276995346,14234.22,0.00021999,120]
[339180368,1727276995511,500.0,0.00021999,120]
[339180369,1727276995646,14234.22,0.00021999,120]
[339180370,1727276996017,14234.22,0.00021999,120]
[339180371,1727276996164,500.0,0.00021999,120]
[339180372,1727276996363,14234.22,0.00021999,120]
[339180373,1727276996507,500.0,0.00021999,120]
[339180374,1727276996673,14234.22,0.00021999,120]
[339180375,1727276996809,500.0,0.00021999,120]
[339180376,1727276997002,14234.22,0.00021999,120]
[339180377,1727276997119,186.10011938,0.00021999,120]
[339180378,1727276997351,14234.22,0.00021999,120]
[339180379,1727276997767,14234.22,0.00021999,120]
[339180380,1727276998098,14234.22,0.00021999,120]
[339180381,1727276998480,14234.22,0.00021999,120]
[339180382,1727276999308,14234.22,0.00021999,120]
[339180383,1727276999339,857.15,0.00021999,120]
[339180384,1727276999379,14234.22,0.00021999,120]
[339180385,1727276999441,857.15,0.00021999,120]
[339180386,1727276999622,14234.22,0.00021999,120]
[339180387,1727276999799,857.15,0.00021999,120]
[339180388,1727276999901,500.0,0.00021999,120]
[339180389,1727276999949,14234.22,0.00021999,120]
[339180390,1727277000120,857.15,0.00021999,120]
[339180391,1727277000375,14234.22,0.00021999,120]
[339180392,1727277000448,857.15,0.00021999,120]
[339180393,1727277000540,500.0,0.00021999,120]
[339180394,1727277000690,14234.22,0.00021999,120]
[339180395,1727277000765,857.15,0.00021999,120]
[339180396,1727277000867,601.40861715,0.00021999,120]
[339180397,1727277001065,14234.22,0.00021999,120]
[339180398,1727277001139,857.15,0.00021999,120]
[339180399,1727277001419,14234.22,0.00021999,120]
[339180400,1727277001488,857.15,0.00021999,120]
[339180401,1727277001754,14234.22,0.00021999,120]
[339180402,1727277001831,857.15,0.00021999,120]
[339180403,1727277002082,14234.22,0.00021999,120]
[339180404,1727277002153,857.15,0.00021999,120]
[339180405,1727277002393,14234.22,0.00021999,120]
[339180406,1727277002477,857.15,0.00021999,120]
[339180407,1727277002732,14234.22,0.00021999,120]
[339180408,1727277003343,857.15,0.00021999,120]
[339180409,1727277003392,14234.22,0.00021999,120]
[339180410,1727277003623,857.15,0.00021999,120]
[339180411,1727277003970,857.15,0.00021999,120]
[339180412,1727277004108,14234.38821002,0.00021999,120]
[339180413,1727277004458,857.15,0.00021999,120]
[339180414,1727277004862,857.15,0.00021999,120]
[339180415,1727277005177,857.15,0.00021999,120]
[339180416,1727277005522,857.15,0.00021999,120]
[339180417,1727277005856,857.15,0.00021999,120]
[339180418,1727277006262,857.15,0.00021999,120]
[339180419,1727277006405,182.0,0.0001111,2]
[339180420,1727277006464,500.0,0.00021999,120]
[339180421,1727277006599,857.15,0.00021999,120]
[339180422,1727277006827,500.0,0.00021999,120]
[339180423,1727277006933,857.15,0.00021999,120]
[339180424,1727277007163,500.0,0.00021999,120]
[339180425,1727277007208,857.15,0.00021999,120]
[339180426,1727277007507,500.0,0.00021999,120]
[339180427,1727277007539,857.19,0.00021999,120]
[339180428,1727277007851,500.0,0.00021999,120]
[339180429,1727277008170,500.0,0.00021999,120]
[339180438,1727277016034,500.0,0.00021999,120]
[339180441,1727277016383,500.0,0.00021999,120]
[339180444,1727277016740,500.0,0.00021999,120]
[339180449,1727277017118,500.0,0.00021999,120]
[339180454,1727277017488,500.0,0.00021999,120]
[339180457,1727277017836,500.0,0.00021999,120]
[339180462,1727277018527,430.5,0.00021999,120]
[339180481,1727277020439,261.72,0.00013918,30]
[339180482,1727277020531,500.0,0.00021999,120]
[339180487,1727277020866,500.0,0.00021999,120]
[339180498,1727277021562,500.0,0.00021999,120]
[339180504,1727277021913,500.0,0.00021999,120]
[339180510,1727277022361,500.0,0.00021999,120]
[339180517,1727277022714,500.0,0.00021999,120]
[339180521,1727277023099,500.0,0.00021999,120]
[339180522,1727277023188,500.0,0.00021999,120]
[339180528,1727277023669,500.0,0.00021999,120]
[339180529,1727277023701,500.0,0.00021999,120]
[339180530,1727277023836,500.0,0.00021999,120]
[339180531,1727277023872,500.0,0.00021999,120]
[339180534,1727277024252,500.0,0.00021999,120]
[339180535,1727277024289,500.0,0.00021999,120]
[339180537,1727277024613,500.0,0.00021999,120]
[339180538,1727277024645,302.24,0.00021999,120]
[339180541,1727277024964,500.0,0.00021999,120]
[339180546,1727277025668,500.0,0.00021999,120]
[339180551,1727277026074,500.0,0.00021999,120]
[339180555,1727277026523,500.0,0.00021999,120]
[339180558,1727277026866,500.0,0.00021999,120]
[339180563,1727277027245,500.0,0.00021999,120]
[339180568,1727277027678,500.0,0.00021999,120]
[339180569,1727277028007,500.0,0.00021999,120]
[339180574,1727277028361,500.0,0.00021999,120]
[339180579,1727277028732,500.0,0.00021999,120]
[339180586,1727277029095,500.0,0.00021999,120]
[339180596,1727277029780,307.37,0.00021999,120]
[339180608,1727277030697,500.0,0.00021999,120]
[339180612,1727277030983,500.0,0.00021999,120]
[339180613,1727277031020,500.0,0.00021999,120]
[339180616,1727277031127,500.0,0.00021999,120]
[339180618,1727277031438,500.0,0.00021999,120]
[339180624,1727277031973,263.18,0.00021999,120]
[339180625,1727277032016,500.0,0.00021999,120]
[339180628,1727277032094,500.0,0.00021999,120]
[339180633,1727277032245,-347.0928266,0.0001112,2]
[339180634,1727277032255,-500.0,0.00011166,2]
[339180635,1727277032266,-461.45,0.0001122,2]
[339180636,1727277032276,-250.0,0.00011227,2]
[339180637,1727277032287,-406.38,0.00011227,2]
[339180638,1727277032296,-1000.0,0.0001123,2]
[339180639,1727277032306,-760.62,0.00011262,2]
[339180640,1727277032322,-1333.69,0.0001133,2]
[339180641,1727277032333,-156.55,0.0001133,2]
[339180642,1727277032343,-250.0,0.00011344,2]
[339180643,1727277032353,-1500.0,0.00011355,2]
[339180644,1727277032363,-165.62,0.0001139,2]
[339180645,1727277032373,-150.99,0.0001139,2]
[339180646,1727277032383,-200.77,0.00011431,2]
[339180647,1727277032393,-300.0,0.00011439,2]
[339180649,1727277032403,-250.0,0.00011441,2]
[339180650,1727277032413,-150.99,0.00011441,2]
[339180651,1727277032423,-499.99,0.00011441,2]
[339180652,1727277032433,-23900.0,0.0001145,2]
[339180654,1727277032444,-150.0,0.00011463,2]
[339180655,1727277032454,-193.37,0.00011542,2]
[339180656,1727277032465,-358.47,0.00011575,2]
[339180657,1727277032479,-159.45482597,0.00011688,2]
[339180659,1727277032489,-153.41075135,0.00011688,2]
[339180660,1727277032500,-154.26787625,0.00011688,2]
[339180661,1727277032510,-600.0,0.00011726,2]
[339180663,1727277032523,-152.0,0.00011798,3]
[339180664,1727277032534,-152.0,0.00011996,4]
[339180665,1727277032545,-152.0,0.00012194,5]
[339180666,1727277032555,-151.29,0.00012283,2]
[339180667,1727277032565,-161.130254,0.00012287,2]
[339180668,1727277032575,-269.541951,0.00012287,2]
[339180669,1727277032585,-120.92151483,0.00012287,2]
[339180670,1727277032598,-59.32729117,0.00012287,2]
[339180671,1727277032608,-224.618295,0.00012287,2]
[339180672,1727277032617,-11.74931705,0.00012287,2]
[339180673,1727277032630,-228.58242295,0.00012287,2]
[339180674,1727277032640,-152.0,0.00012392,6]
[339180675,1727277032651,-154.92857705,0.0001244,2]
[339180676,1727277032667,-114.61337395,0.0001244,2]
[339180677,1727277032677,-754.57500896,0.00012466,2]
[339180678,1727277032690,-7.85884594,0.00012466,2]
[339180679,1727277032700,-150.0,0.00012475,2]
[339180680,1727277032709,-150.0,0.00012476,2]
[339180681,1727277032719,-69.53981302,0.00012476,2]
[339180683,1727277032752,150.0,1.18e-05,2]
[339180684,1727277032765,-246.17368698,0.00012476,2]
[339180685,1727277032779,-7500.0,0.00012476,2]
[339180686,1727277032789,-155.58977243,0.00012489,2]
[339180687,1727277032799,-180.248806,0.00012491,2]
[339180688,1727277032808,-420.0,0.00012565,2]
[339180689,1727277032818,-11736.28771888,0.00012575,2]
[339180690,1727277032831,-600.0,0.00012575,2]
[339180691,1727277032843,-1096.73776496,0.00012575,2]
[339180692,1727277032856,-1238.04,0.00012575,2]
[339180693,1727277032889,500.0,0.00021999,120]
[339180694,1727277032903,-14413.82051616,0.00012575,2]
[339180695,1727277032913,-145806.81366503,0.00012576,2]
[339180696,1727277032930,-2599.99999999,0.00012576,2]
[339180697,1727277032947,-96593.18633498,0.00012576,2]
[339180698,1727277032959,-152.0,0.00012589,7]
[339180699,1727277032969,-269.541951,0.00012594,2]
[339180700,1727277032980,-461.45,0.00012623,2]
[339180701,1727277032991,-1000.0,0.00012634,2]
[339180702,1727277033001,-180.248806,0.00012696,2]
[339180703,1727277033012,-374.32771656,0.00012702,2]
[339180705,1727277033023,-1738.10340403,0.00012712,2]
[339180706,1727277033033,-1104.45056437,0.00012739,2]
[339180707,1727277033043,-269.541951,0.00012747,2]
[339180708,1727277033058,-150.0,0.00012751,2]
[339180710,1727277033069,-1738.10340403,0.00012759,2]
[339180711,1727277033080,-152.0,0.00012787,8]
[339180712,1727277033091,-168.75603804,0.00012795,2]
[339180714,1727277033102,-156.13,0.00012795,2]
[339180715,1727277033113,-151.16962534,0.00012796,2]
[339180716,1727277033123,-1014.0,0.000128,2]
[339180717,1727277033133,-500.0,0.00012804,2]
[339180718,1727277033144,-429.59550453,0.00012804,2]
[339180719,1727277033154,-205180.18427285,0.00012805,2]
[339180722,1727277033215,-587.0,0.00012805,2]
[339180723,1727277033227,-741.75223504,0.00012805,2]
[339180724,1727277033239,-984.09450233,0.00012805,2]
[339180726,1727277033251,-3211.1595,0.00012805,2]
[339180727,1727277033292,500.0,0.00021999,120]
[339180728,1727277033337,412.96107759,0.00021999,120]
[339180730,1727277033383,500.0,0.00021999,120]
[339180739,1727277034036,500.0,0.00021999,120]
[339180740,1727277034115,500.0,0.00021999,120]
[339180756,1727277035547,500.0,0.00021999,120]
[339180763,1727277036129,772.91,0.00021999,120]
[339180767,1727277036517,772.91,0.00021999,120]
[339180772,1727277036880,772.91,0.00021999,120]
[339180777,1727277037232,772.91,0.00021999,120]
[339180780,1727277037570,772.91,0.00021999,120]
[339180782,1727277037900,772.91,0.00021999,120]
[339180791,1727277038258,772.91,0.00021999,120]
[339180796,1727277038625,772.91,0.00021999,120]
[339180801,1727277039011,772.91,0.00021999,120]
[339180805,1727277039516,772.91,0.00021999,120]
[339180807,1727277039605,-250.0,0.00011934,2]
[339180809,1727277039615,-16980.93025997,0.00012805,2]
[339180812,1727277039627,-227662.35202472,0.00012805,2]
[339180814,1727277039638,-1738.10340403,0.00012806,2]
[339180816,1727277039647,-500.0,0.00012822,2]
[339180818,1727277039657,-1359.13558793,0.00012853,2]
[339180822,1727277039918,772.91,0.00021999,120]
[339180825,1727277040102,500.0,0.00021999,120]
[339180831,1727277040212,-378.9678161,0.00012853,2]
[339180832,1727277040223,-500.0,0.00012873,2]
[339180834,1727277040233,-501.35668831,0.00012873,2]
[339180835,1727277040242,-500.0,0.00012873,2]
[339180836,1727277040253,-500.0,0.00012873,2]
[339180837,1727277040263,-500.0,0.00012873,2]
[339180839,1727277040274,-500.0,0.00012876,2]
[339180840,1727277040283,-500.0,0.00012876,2]
[339180841,1727277040292,-500.0,0.00012876,2]
[339180842,1727277040302,-500.0,0.00012876,2]
[339180843,1727277040312,-500.0,0.00012876,2]
[339180844,1727277040322,-500.0,0.00012876,2]
[339180845,1727277040331,-500.0,0.00012876,2]
[339180846,1727277040341,-500.0,0.00012876,2]
[339180847,1727277040351,-500.0,0.00012876,2]
[339180849,1727277040360,-500.0,0.00012876,2]
[339180850,1727277040370,-500.0,0.00012876,2]
[339180851,1727277040380,-500.0,0.00012876,2]
[339180852,1727277040390,-500.0,0.00012876,2]
[339180853,1727277040400,-500.0,0.00012876,2]
[339180854,1727277040411,-500.0,0.00012876,2]
[339180855,1727277040420,-500.0,0.00012876,2]
[339180856,1727277040430,-500.0,0.00012876,2]
[339180857,1727277040439,-500.0,0.00012876,2]
[339180858,1727277040452,-500.0,0.00012876,2]
[339180859,1727277040462,-150.0,0.00012876,2]
[339180860,1727277040474,-500.0,0.00012876,2]
[339180861,1727277040486,-500.0,0.00012876,2]
[339180863,1727277040495,-500.0,0.00012876,2]
[339180865,1727277040505,-500.0,0.00012876,2]
[339180867,1727277040516,-500.0,0.00012876,2]
[339180869,1727277040525,-243.14414196,0.00012876,2]
[339180871,1727277040541,-256.85585804,0.00012876,2]
[339180873,1727277040552,-500.0,0.00012876,2]
[339180875,1727277040562,-500.0,0.00012876,2]
[339180877,1727277040571,-500.0,0.00012876,2]
[339180879,1727277040581,-500.0,0.00012876,2]
[339180881,1727277040591,-306.35133106,0.00012876,2]
[339180884,1727277040605,-193.64866894,0.00012876,2]
[339180886,1727277040614,-69.48133106,0.00012876,2]
[339180891,1727277040650,772.91,0.00021999,120]
[339180927,1727277040984,500.0,0.00021999,120]
[339180929,1727277041001,-430.51866894,0.00012876,2]
[339180932,1727277041011,-500.0,0.00012876,2]
[339180933,1727277041022,-500.0,0.00012876,2]
[339180934,1727277041031,-619.46,0.00012876,2]
[339180935,1727277041040,-500.0,0.00012876,2]
[339180937,1727277041050,-500.0,0.00012876,2]
[339180938,1727277041060,-500.0,0.00012876,2]
[339180939,1727277041070,-500.0,0.00012876,2]
[339180941,1727277041079,-500.0,0.00012876,2]
[339180942,1727277041089,-500.0,0.00012876,2]
[339180943,1727277041099,-500.0,0.00012876,2]
[339180944,1727277041109,-500.0,0.00012876,2]
[339180946,1727277041119,-500.0,0.00012876,2]
[339180947,1727277041130,-500.0,0.00012876,2]
[339180948,1727277041140,-500.0,0.00012876,2]
[339180949,1727277041149,-500.0,0.00012876,2]
[339180951,1727277041158,-500.0,0.00012876,2]
[339180952,1727277041168,-500.0,0.00012876,2]
[339180953,1727277041178,-500.0,0.00012876,2]
[339180954,1727277041188,-500.0,0.00012876,2]
[339180956,1727277041201,-545.33,0.00012876,2]
[339180957,1727277041210,-500.0,0.00012876,2]
[339180958,1727277041219,-500.0,0.00012876,2]
[339180960,1727277041229,-500.0,0.00012876,2]
[339180961,1727277041239,-500.0,0.00012876,2]
[339180962,1727277041249,-500.0,0.00012876,2]
[339180964,1727277041259,-500.0,0.00012876,2]
[339180967,1727277041520,-500.0,0.00012876,2]
[339180968,1727277041532,-500.0,0.00012876,2]
[339180969,1727277041543,-500.0,0.00012876,2]
[339180970,1727277041555,-571.58,0.00012876,2]
[339180971,1727277041564,-571.58,0.00012876,2]
[339180972,1727277041576,-571.58,0.00012876,2]
[339180974,1727277041585,-500.0,0.00012876,2]
[339180975,1727277041595,-500.0,0.00012876,2]
[339180976,1727277041605,-368.14,0.00012876,2]
[339180978,1727277041614,-500.0,0.00012876,2]
[339180979,1727277041624,-500.0,0.00012876,2]
[339180980,1727277041634,-500.0,0.00012876,2]
[339180981,1727277041643,-500.0,0.00012876,2]
[339180982,1727277041653,-500.0,0.00012876,2]
[339180983,1727277041663,-500.0,0.00012876,2]
[339180984,1727277041673,-185.98736367,0.00012876,2]
[339180985,1727277041682,-500.0,0.00012876,2]
[339180986,1727277041694,-500.0,0.00012876,2]
[339180987,1727277041704,-503.08,0.00012876,2]
[339180989,1727277041714,-449.18,0.00012876,2]
[339180990,1727277041724,-500.0,0.00012876,2]
[339180991,1727277041735,-500.0,0.00012876,2]
[339180992,1727277041744,-500.0,0.00012876,2]
[339180994,1727277041755,-500.0,0.00012876,2]
[339180995,1727277041765,-500.0,0.00012876,2]
[339180996,1727277041775,-257.94644087,0.00012876,2]
[339180997,1727277041785,-500.0,0.00012876,2]
[339180998,1727277041795,-500.0,0.00012876,2]
[339180999,1727277041805,-500.0,0.00012876,2]
[339181000,1727277041814,-302.82,0.00012876,2]
[339181001,1727277041824,-500.0,0.00012876,2]
[339181002,1727277041833,-500.0,0.00012876,2]
[339181003,1727277041843,-167.98108244,0.00012876,2]
[339181004,1727277041852,-342.84,0.00012876,2]
[339181005,1727277041862,-342.84,0.00012876,2]
[339181006,1727277041871,-342.84,0.00012876,2]
[339181007,1727277041881,-500.0,0.00012876,2]
[339181008,1727277041890,-500.0,0.00012876,2]
[339181009,1727277041900,-500.0,0.00012876,2]
[339181011,1727277041909,-277.16,0.00012876,2]
[339181012,1727277041919,-500.0,0.00012876,2]
[339181013,1727277041929,-500.0,0.00012876,2]
[339181014,1727277041939,-227.04,0.00012876,2]
[339181015,1727277041950,-500.0,0.00012876,2]
[339181016,1727277041959,-422.0713121,0.00012876,2]
[339181017,1727277041969,-500.0,0.00012876,2]
[339181018,1727277041979,-500.0,0.00012876,2]
[339181019,1727277041989,-641.64,0.00012876,2]
[339181020,1727277041999,-500.0,0.00012876,2]
[339181021,1727277042008,-500.0,0.00012876,2]
[339181022,1727277042018,-500.0,0.00012876,2]
[339181023,1727277042028,-205.2,0.00012876,2]
[339181025,1727277042038,-500.0,0.00012876,2]
[339181026,1727277042048,-500.0,0.00012876,2]
[339181027,1727277042057,-500.0,0.00012876,2]
[339181028,1727277042067,-500.0,0.00012876,2]
[339181029,1727277042077,-634.18247404,0.00012876,2]
[339181031,1727277042086,-268.01521125,0.00012876,2]
[339181032,1727277042095,-500.0,0.00012876,2]
[339181033,1727277042104,-500.0,0.00012876,2]
[339181034,1727277042115,-500.0,0.00012876,2]
[339181035,1727277042124,-500.0,0.00012876,2]
[339181036,1727277042134,-500.0,0.00012876,2]
[339181037,1727277042143,-500.0,0.00012876,2]
[339181038,1727277042153,-500.0,0.00012876,2]
[339181039,1727277042163,-500.0,0.00012876,2]
[339181040,1727277042173,-500.0,0.00012876,2]
[339181041,1727277042182,-253.35,0.00012876,2]
[339181042,1727277042193,-500.0,0.00012876,2]
[339181043,1727277042203,-500.0,0.00012876,2]
[339181044,1727277042214,-500.0,0.00012876,7]
[339181045,1727277042225,-500.0,0.00012876,7]
[339181046,1727277042235,-381.7,0.00012876,2]
[339181047,1727277042245,-500.0,0.00012876,2]
[339181048,1727277042255,-504.61,0.00012876,2]
[339181049,1727277042264,-500.0,0.00012876,2]
[339181051,1727277042275,-500.0,0.00012876,2]
[339181052,1727277042284,-500.0,0.00012876,2]
[339181053,1727277042294,-500.0,0.00012876,2]
[339181054,1727277042303,-192.72744669,0.00012876,2]
[339181055,1727277042319,-307.27255331,0.00012876,2]
[339181056,1727277042329,-500.0,0.00012876,2]
[339181057,1727277042339,-500.0,0.00012876,2]
[339181058,1727277042348,-500.0,0.00012876,2]
[339181060,1727277042358,-29.01631653,0.00012876,2]
[339181061,1727277042370,-470.98368347,0.00012876,2]
[339181062,1727277042379,-500.0,0.00012876,2]
[339181064,1727277042388,-500.0,0.00012876,2]
[339181065,1727277042398,-500.0,0.00012876,2]
[339181066,1727277042407,-500.0,0.00012876,2]
[339181068,1727277042417,-290.8125433,0.00012876,2]
[339181069,1727277042426,-500.0,0.00012876,2]
[339181070,1727277042436,-500.0,0.00012876,2]
[339181071,1727277042448,-500.0,0.00012876,2]
[339181072,1727277042457,-500.0,0.00012876,2]
[339181073,1727277042468,-500.0,0.00012876,2]
[339181074,1727277042482,-500.0,0.00012876,2]
[339181075,1727277042491,-500.0,0.00012876,2]
[339181076,1727277042501,-500.0,0.00012876,2]
[339181077,1727277042511,-500.0,0.00012876,2]
[339181078,1727277042522,-500.0,0.00012876,2]
[339181079,1727277042532,-500.0,0.00012876,2]
[339181080,1727277042542,-317.46,0.00012876,2]
[339181081,1727277042555,-500.0,0.00012876,2]
[339181082,1727277042565,-500.0,0.00012876,2]
[339181083,1727277042575,-500.0,0.00012876,2]
[339181084,1727277042585,-500.0,0.00012876,2]
[339181086,1727277042594,-203.21465647,0.00012876,2]
[339181087,1727277042603,-367.65,0.00012876,2]
[339181088,1727277042613,-500.0,0.00012876,2]
[339181089,1727277042622,-500.0,0.00012876,2]
[339181090,1727277042631,-500.0,0.00012876,2]
[339181091,1727277042641,-500.0,0.00012876,2]
[339181092,1727277042651,-500.0,0.00012876,2]
[339181093,1727277042660,-500.0,0.00012876,2]
[339181094,1727277042670,-500.0,0.00012876,2]
[339181095,1727277042680,-500.0,0.00012876,2]
[339181097,1727277042689,-500.0,0.00012876,2]
[339181098,1727277042703,-500.0,0.00012876,2]
[339181099,1727277042713,-500.0,0.00012876,2]
[339181100,1727277042723,-500.0,0.00012876,2]
[339181102,1727277042732,-500.0,0.00012876,2]
[339181103,1727277042742,-500.0,0.00012876,2]
[339181104,1727277042752,-500.0,0.00012876,2]
[339181105,1727277042761,-500.0,0.00012876,2]
[339181106,1727277042771,-500.0,0.00012876,2]
[339181107,1727277042780,-500.0,0.00012876,2]
[339181108,1727277042790,-500.0,0.00012876,2]
[339181109,1727277042800,-500.0,0.00012876,2]
[339181110,1727277042811,-500.0,0.00012876,2]
[339181111,1727277042821,-500.0,0.00012876,2]
[339181112,1727277042831,-187.76,0.00012876,2]
[339181113,1727277042842,-705.04,0.00012876,2]
[339181114,1727277042853,-705.04,0.00012876,2]
[339181115,1727277042863,-705.04,0.00012876,2]
[339181116,1727277042873,-341.38064597,0.00012876,2]
[339181117,1727277042883,-500.0,0.00012876,2]
[339181118,1727277042892,-500.0,0.00012876,2]
[339181119,1727277042902,-500.0,0.00012876,2]
[339181120,1727277042912,-512.83,0.00012876,2]
[339181121,1727277042921,-500.0,0.00012876,2]
[339181123,1727277042931,-500.0,0.00012876,2]
[339181124,1727277042944,-500.0,0.00012876,2]
[339181125,1727277042954,-493.79747805,0.00012876,2]
[339181126,1727277042964,-500.0,0.00012876,2]
[339181127,1727277042973,-245.98,0.00012876,2]
[339181128,1727277042984,-500.0,0.00012876,2]